fUST/lending_fUST_20260203
["ID","MTS","AMOUNT","RATE_DAILY","PERIOD"]
[404372412,1770083584421,500.0,0.00013699,2]
[404372413,1770083584446,515.95437287,0.00013273,2]
[404372414,1770083584477,381.76872298,0.00014247,2]
[404372415,1770083587638,500.0,0.00013699,2]
[404372416,1770083587699,501.39091685,0.00014247,2]
[404372417,1770083588088,500.0,0.00013699,2]
[404372418,1770083588137,502.35794216,0.00014795,2]
[404372419,1770083588187,1000.0,0.00014247,2]
[404372420,1770083588347,500.0,0.00013699,2]
[404372421,1770083588408,1013.27517272,0.00014247,2]
[404372422,1770083588524,500.0,0.00013273,2]
[404372423,1770083588579,502.06480189,0.00013821,2]
[404372424,1770083588871,500.0,0.00013699,2]
[404372425,1770083588920,501.63013071,0.00014247,2]
[404372426,1770083590642,553.65307198,0.00013821,2]
[404372427,1770083590671,454.60365356,0.00013821,2]
[404372428,1770083590712,500.0,0.00013273,2]
[404372429,1770083591490,500.0,0.00013273,2]
[404372430,1770083591525,3000.0,0.00016012,2]
[404372431,1770083591562,1000.0,0.00013821,2]
[404372432,1770083591602,211.35179518,0.00013273,2]
[404372433,1770083591641,3500.0,0.0001656,2]
[404372434,1770083591675,834.05455126,0.00014368,2]
[404372435,1770083591700,665.94544874,0.00014368,2]
[404372436,1770083591731,1014.85900881,0.00017108,2]
[404372437,1770083591769,2000.0,0.00014916,2]
[404372438,1770083591803,2500.0,0.00015464,2]
[404372439,1770083592091,502.82847193,0.00013273,2]
[404372440,1770083592256,500.91906067,0.00013273,2]
[404372441,1770083594374,164.15053695,0.00013973,2]
[404372442,1770083595323,500.0,0.00013699,2]
[404372443,1770083595383,1000.0,0.00014247,2]
[404372444,1770083595436,502.52398515,0.00014795,2]
[404372445,1770083595596,648.78348775,0.00014247,2]
[404372446,1770083595617,351.21651225,0.00014247,2]
[404372447,1770083595652,500.0,0.00013699,2]
[404372448,1770083595682,524.47320069,0.00014795,2]
[404372449,1770083596360,500.0,0.00013699,2]
[404372450,1770083596397,1000.0,0.00014247,2]
[404372451,1770083596437,500.0,0.00013699,2]
[404372452,1770083596462,502.64706504,0.00014795,2]
[404372453,1770083596487,501.41070703,0.00014247,2]
[404372454,1770083598025,1001.72998214,0.00014247,2]
[404372455,1770083598097,500.0,0.00013699,2]
[404372456,1770083598125,345.17342818,0.00013699,2]
[404372457,1770083598337,500.0,0.00013699,2]
[404372458,1770083598392,500.79279263,0.00014247,2]
[404372459,1770083598894,500.0,0.00013273,2]
[404372460,1770083598928,2017.04907314,0.00015464,2]
[404372461,1770083598956,255.5172389,0.00014247,2]
[404372462,1770083598986,300.50333373,0.00014247,2]
[404372463,1770083599022,2000.0,0.00014916,2]
[404372464,1770083599053,500.0,0.00013699,2]
[404372465,1770083599088,1000.0,0.00013821,2]
[404372466,1770083599117,1500.0,0.00014368,2]
[404372467,1770083599183,500.0,0.00013699,2]
[404372468,1770083599236,1000.0,0.00014247,2]
[404372469,1770083599272,500.0,0.00013699,2]
[404372470,1770083599301,502.76276556,0.00014795,2]
[404372471,1770083599326,1000.0,0.00014247,2]
[404372472,1770083599359,504.78667089,0.00014795,2]
[404372473,1770083600015,502.05576285,0.00013273,2]
[404372474,1770083600371,189.90146697,0.00013699,2]
[404372475,1770083600393,310.09853303,0.00013699,2]
[404372476,1770083600419,501.32176623,0.00014247,2]
[404372477,1770083600811,300.0,0.00013673,2]
[404372478,1770083600875,600.0,0.00014221,2]
[404372479,1770083600929,900.0,0.00014768,2]
[404372480,1770083600982,608.93572474,0.00015316,2]
[404372481,1770083643758,500.0,0.00013699,2]
[404372482,1770083643809,1000.0,0.00014247,2]
[404372483,1770083643863,501.81762931,0.00014795,2]
[404372484,1770083646942,500.0,0.00013699,2]
[404372485,1770083646970,430.12648011,0.00014795,2]
[404372486,1770083646996,1000.0,0.00014247,2]
[404372487,1770083647154,500.0,0.00013699,2]
[404372488,1770083647204,1001.43037161,0.00014247,2]
[404372489,1770083647231,500.0,0.00013699,2]
[404372490,1770083647269,1000.0,0.00014247,2]
[404372491,1770083647325,505.37497233,0.00014795,2]
[404372492,1770083647376,503.80157978,0.00013273,2]
[404372493,1770083647944,500.0,0.00013699,2]
[404372494,1770083647996,1001.05029279,0.00014247,2]
[404372495,1770083651846,532.14555202,0.00013699,2]
[404372496,1770083652286,24.26312205,0.00013699,2]
[404372497,1770083652308,475.73687795,0.00013699,2]
[404372498,1770083652343,500.70746327,0.00014247,2]
[404372499,1770083654809,500.0,0.00013273,2]
[404372500,1770083654843,1000.0,0.00013821,2]
[404372501,1770083654884,1510.43790627,0.00014368,2]
[404372502,1770083654964,469.35720051,0.00013273,2]
[404372503,1770083655576,448.37781545,0.00013699,2]
[404372505,1770083702936,500.0,0.00013699,2]
[404372506,1770083702996,1000.0,0.00014247,2]
[404372507,1770083703066,502.1022634,0.00014795,2]
[404372508,1770083706109,501.89704938,0.00013273,2]
[404372509,1770083707117,500.0,0.00013699,2]
[404372510,1770083707170,1000.0,0.00014247,2]
[404372511,1770083707227,244.41498166,0.00014795,2]
[404372512,1770083707699,509.02981201,0.00013273,2]
[404372513,1770083708622,500.0,0.00013699,2]
[404372514,1770083708664,1000.0,0.00014247,2]
[404372515,1770083708719,505.42777453,0.00014795,2]
[404372516,1770083763950,500.0,0.00013699,2]
[404372517,1770083763984,513.41462818,0.00014247,2]
[404372518,1770083764322,500.0,0.00013699,2]
[404372519,1770083764384,502.66447988,0.00014795,2]
[404372520,1770083764435,1000.0,0.00014247,2]
[404372521,1770083764587,221.05901096,0.00013273,2]
[404372522,1770083764622,278.94098904,0.00013273,2]
[404372523,1770083764658,1000.0,0.00013821,2]
[404372524,1770083764700,1500.0,0.00014368,2]
[404372525,1770083764744,2000.0,0.00014916,2]
[404372526,1770083764788,509.63103854,0.00015464,2]
[404372527,1770083767538,500.0,0.00013699,2]
[404372528,1770083767589,676.10190304,0.00014247,2]
[404372529,1770083768358,500.0,0.00013699,2]
[404372530,1770083768411,1000.0,0.00014247,2]
[404372531,1770083768494,541.70062063,0.00014795,2]
[404372532,1770083823651,631.95521422,0.00014247,2]
[404372533,1770083823701,500.0,0.00013699,2]
[404372534,1770083824083,361.68023453,0.00013699,2]
[404372535,1770083824104,86.37517388,0.00013699,2]
[404372536,1770083824212,155.41717842,0.00016438,2]
[404372537,1770083824272,500.0,0.00013699,2]
[404372538,1770083824312,668.46137547,0.00014247,2]
[404372539,1770083824620,501.62019934,0.00013273,2]
[404372540,1770083826329,500.0,0.00013699,2]
[404372541,1770083826368,1001.44961291,0.00014247,2]
[404372542,1770083826395,501.13917919,0.00013273,2]
[404372543,1770083826918,500.0,0.00013273,2]
[404372544,1770083826978,502.41895084,0.00013821,2]
[404372545,1770083827103,500.0,0.00013699,2]
[404372546,1770083827160,1000.0,0.00014247,2]
[404372547,1770083827214,1500.0,0.00014795,2]
[404372548,1770083827258,500.62738152,0.00013699,2]
[404372549,1770083827377,501.8715295,0.00015342,2]
[404372550,1770083827501,500.0,0.00013273,2]
[404372551,1770083827563,580.62941893,0.00013821,2]
[404372552,1770083827587,425.3126142,0.00013821,2]
[404372553,1770083827613,500.0,0.00013273,2]
[404372554,1770083827644,502.28567286,0.00013821,2]
[404372555,1770083828185,502.37617839,0.00013273,2]
[404372556,1770083828470,168.10936472,0.00013973,2]
[404372557,1770083828719,1036.69780885,0.00014247,2]
[404372558,1770083828748,500.0,0.00013273,2]
[404372559,1770083828784,500.0,0.00013699,2]
[404372560,1770083828813,1018.23763288,0.00014368,2]
[404372561,1770083828842,1000.0,0.00013821,2]
[404372562,1770083829114,500.0,0.00013699,2]
[404372563,1770083829141,500.0,0.00013699,2]
[404372564,1770083829168,1000.0,0.00014247,2]
[404372565,1770083829196,1000.0,0.00014247,2]
[404372566,1770083829227,501.67754282,0.00014795,2]
[404372567,1770083829253,345.31318528,0.00014795,2]
[404372568,1770083829275,113.13501112,0.00014795,2]
[404372569,1770083872872,2258.04,0.00015342,2]
[404372570,1770083883279,500.0,0.00013699,2]
[404372571,1770083883341,664.141193,0.00014247,2]
[404372572,1770083884738,500.0,0.00013273,2]
[404372573,1770083884764,500.0,0.00013699,2]
[404372574,1770083884794,1000.0,0.00013821,2]
[404372575,1770083884825,1000.0,0.00014247,2]
[404372576,1770083884860,528.68511647,0.00014368,2]
[404372577,1770083884886,529.33271494,0.00013699,2]
[404372578,1770083884917,1183.66927089,0.00014795,2]
[404372579,1770083943850,500.33977898,0.00013699,2]
[404372580,1770083943947,500.0,0.00013273,2]
[404372581,1770083943983,1000.0,0.00013821,2]
[404372582,1770083944037,1011.93515566,0.0001656,2]
[404372583,1770083944083,1500.0,0.00014368,2]
[404372584,1770083944142,2000.0,0.00014916,2]
[404372585,1770083944202,3000.0,0.00016012,2]
[404372586,1770083944258,2500.0,0.00015464,2]
[404372587,1770084004009,500.0,0.00013699,2]
[404372588,1770084004149,671.30504098,0.00014247,2]
[404372589,1770084004178,500.0,0.00013273,2]
[404372590,1770084004206,1000.0,0.00013821,2]
[404372591,1770084004235,1500.0,0.00014368,2]
[404372592,1770084004267,1501.84841022,0.00014916,2]
[404372593,1770084005151,500.0,0.00013699,2]
[404372594,1770084005181,1001.67672284,0.00014795,2]
[404372595,1770084005245,1000.0,0.00014247,2]
[404372596,1770084063226,445.36774886,0.00013273,2]
[404372597,1770084063288,500.0,0.00013273,2]
[404372598,1770084063316,500.0,0.00013699,2]
[404372599,1770084063342,185.16375746,0.00013699,2]
[404372600,1770084063368,422.13878715,0.00013699,2]
[404372601,1770084063394,571.27962246,0.00014247,2]
[404372602,1770084063421,502.34329407,0.00013821,2]
[404372603,1770084065829,500.0,0.00013699,2]
[404372604,1770084065863,1000.0,0.00014247,2]
[404372605,1770084065896,186.60168132,0.00014795,2]
[404372606,1770084065920,315.01341635,0.00014795,2]
[404372607,1770084066462,500.0,0.00013273,2]
[404372608,1770084066515,1000.0,0.00013821,2]
[404372609,1770084066571,967.52166678,0.00014368,2]
[404372610,1770084067383,500.0,0.00013699,2]
[404372611,1770084067437,1002.08830779,0.00014247,2]
[404372613,1770084099479,-524.64187569,0.00024953,2]
[404372614,1770084123798,500.0,0.00013699,2]
[404372615,1770084123855,843.63712811,0.00014247,2]
[404372616,1770084183900,500.0,0.00013699,2]
[404372617,1770084183940,535.88086016,0.00014247,2]
[404372618,1770084183986,500.0,0.00013699,2]
[404372619,1770084184045,500.0,0.00013273,2]
[404372620,1770084184072,1000.0,0.00014247,2]
[404372621,1770084184102,501.56423802,0.00014795,2]
[404372622,1770084184128,500.0,0.00013821,2]
[404372624,1770084290684,200.0,0.0003,120]
[404372625,1770084303822,440.69916854,0.00013273,2]
[404372626,1770084304069,500.0,0.00013699,2]
[404372627,1770084304099,1094.18897569,0.00014247,2]
[404372628,1770084304272,500.0,0.00013273,2]
[404372629,1770084304341,297.81970741,0.00013821,2]
[404372630,1770084307050,201.41043372,0.00013673,2]
[404372631,1770084307254,500.0,0.00013699,2]
[404372632,1770084315632,500.0,0.00013273,2]
[404372633,1770084315681,500.67926291,0.00013821,2]
[404372634,1770084322106,300.0,0.00013673,2]
[404372635,1770084322152,300.0,0.00014221,2]
[404372636,1770084329752,678.77,0.00015342,2]
[404372637,1770084364599,700.0,0.0003,120]
[404372638,1770084367255,500.0,0.00013273,2]
[404372639,1770084367321,1000.0,0.00013821,2]
[404372640,1770084367380,1500.0,0.00014368,2]
[404372641,1770084367432,917.9450484,0.00014916,2]
[404372642,1770084367472,268.49740333,0.00013273,2]
[404372643,1770084367512,231.50259667,0.00013273,2]
[404372644,1770084367554,500.0,0.00013821,2]
[404372645,1770084372144,500.57613214,0.00013273,2]
[404372646,1770084394931,200.2160147,0.00039847,120]
[404372647,1770084423845,500.0,0.00013699,2]
[404372648,1770084423898,1000.0,0.00014247,2]
[404372649,1770084423926,501.24153881,0.00013273,2]
[404372650,1770084424004,502.10712344,0.00013699,2]
[404372651,1770084424176,500.0,0.00013273,2]
[404372652,1770084424222,1000.0,0.00013821,2]
[404372653,1770084424253,500.0,0.00013699,2]
[404372654,1770084424280,1500.0,0.00014368,2]
[404372655,1770084424307,613.5354249,0.00014247,2]
[404372656,1770084424334,500.0,0.00014916,2]
[404372657,1770084431720,269.56058502,0.00013273,2]
[404372658,1770084432058,172.14357928,0.00013273,2]
[404372659,1770084434604,233.15846361,0.00013273,2]
[404372660,1770084439149,500.0,0.00013273,2]
[404372661,1770084439197,1000.0,0.00013821,2]
[404372662,1770084439255,228.79196395,0.00014368,2]
[404372663,1770084439579,479.47132099,0.00013273,2]
[404372664,1770084439604,20.52867901,0.00013273,2]
[404372666,1770084483149,500.0,0.00013273,2]
[404372667,1770084483197,500.0,0.00013273,2]
[404372668,1770084483260,502.65374842,0.00013821,2]
[404372669,1770084486319,500.0,0.00013273,2]
[404372670,1770084486352,500.0,0.00013273,2]
[404372671,1770084486378,538.93586168,0.00013821,2]
[404372672,1770084486409,1000.0,0.00013821,2]
[404372673,1770084486436,500.0,0.00013273,2]
[404372674,1770084486466,1000.0,0.00013821,2]
[404372675,1770084486492,1000.0,0.00014368,2]
[404372676,1770084486519,524.63271645,0.00014368,2]
[404372677,1770084486615,500.0,0.00013273,2]
[404372678,1770084488411,500.0,0.00013699,2]
[404372679,1770084490741,500.0,0.00013273,2]
[404372680,1770084490782,500.0,0.00013821,2]
[404372681,1770084506674,-2076.66899735,0.00023729,2]
[404372682,1770084506698,-5000.0,0.00023969,2]
[404372683,1770084506722,-300.0,0.00024355,2]
[404372684,1770084506746,-150.0,0.0002458,2]
[404372685,1770084506769,-1200.0,0.00024701,2]
[404372686,1770084506793,-300.0,0.00024701,2]
[404372687,1770084506815,-300.0,0.00024702,2]
[404372688,1770084506842,-300.0,0.00024702,2]
[404372689,1770084506867,-300.0,0.00024702,2]
[404372690,1770084506891,-500.0,0.00025205,2]
[404372691,1770084506917,-495.75222602,0.00025205,2]
[404372692,1770084506942,-300.0,0.00026143,30]
[404372693,1770084506968,-300.0,0.00026143,30]
[404372694,1770084506995,-300.0,0.00026143,30]
[404372695,1770084507021,-300.0,0.00026143,30]
[404372696,1770084507046,-300.0,0.00026143,30]
[404372697,1770084507070,-300.0,0.00026143,30]
[404372698,1770084507186,-300.0,0.00026143,30]
[404372699,1770084507211,-300.0,0.00026143,30]
[404372700,1770084507235,-300.0,0.00026143,30]
[404372701,1770084507259,-300.0,0.00026143,30]
[404372702,1770084507283,-300.0,0.00026143,30]
[404372703,1770084507308,-300.0,0.00026143,30]
[404372704,1770084507332,-300.0,0.00026143,30]
[404372705,1770084507356,-300.0,0.00026143,30]
[404372706,1770084507384,-300.0,0.00026143,30]
[404372707,1770084507408,-177.0,0.0002658,2]
[404372708,1770084507433,-420.0,0.00026768,2]
[404372709,1770084507457,-525.0,0.00026889,2]
[404372710,1770084507482,-204.0,0.0002858,2]
[404372711,1770084507506,-587.0,0.00029007,2]
[404372712,1770084507530,-231.0,0.0003058,2]
[404372713,1770084507554,-169.08618077,0.00031,120]
[404372714,1770084507579,-823.0,0.00031434,2]
[404372715,1770084507604,-376.067401,0.00031852,2]
[404372716,1770084507629,-509.73924692,0.00031899,2]
[404372717,1770084507652,-192.19185757,0.00031899,2]
[404372718,1770084507678,-340.21499064,0.00031899,2]
[404372719,1770084507702,-459.87359048,0.00031899,2]
[404372720,1770084507728,-500.0,0.00031899,2]
[404372721,1770084507753,-500.0,0.00031899,2]
[404372722,1770084507778,-500.0,0.00031899,2]
[404372723,1770084507803,-500.0,0.00031899,2]
[404372724,1770084507830,-500.0,0.00031899,2]
[404372725,1770084507855,-500.0,0.00031899,2]
[404372726,1770084507882,-500.0,0.00031899,2]
[404372727,1770084507908,-500.0,0.00031899,2]
[404372728,1770084507934,-500.0,0.00031899,2]
[404372729,1770084507961,-63.40550925,0.00031899,2]
[404372730,1770084509618,-436.59449075,0.00031899,2]
[404372731,1770084509644,-500.0,0.00031899,2]
[404372732,1770084509670,-500.0,0.00031899,2]
[404372733,1770084509696,-500.0,0.00031899,2]
[404372734,1770084509722,-500.0,0.00031899,2]
[404372735,1770084509747,-500.0,0.00031899,2]
[404372736,1770084509771,-500.0,0.00031899,2]
[404372737,1770084509804,-500.0,0.00031899,2]
[404372738,1770084509832,-248.09051355,0.00031899,2]
[404372739,1770084509857,-500.0,0.00031899,2]
[404372740,1770084509883,-500.0,0.00031899,2]
[404372741,1770084509908,-500.0,0.00031899,2]
[404372742,1770084509934,-500.0,0.00031899,2]
[404372743,1770084509959,-500.0,0.00031899,2]
[404372744,1770084509984,-500.0,0.00031899,2]
[404372745,1770084510009,-500.0,0.00031899,2]
[404372746,1770084510036,-500.0,0.00031899,2]
[404372747,1770084510061,-500.0,0.00031899,2]
[404372748,1770084510088,-500.0,0.00031899,2]
[404372749,1770084510113,-500.0,0.00031899,2]
[404372750,1770084510137,-500.0,0.00031899,2]
[404372751,1770084510162,-500.0,0.00031899,2]
[404372752,1770084510186,-500.0,0.00031899,2]
[404372753,1770084510211,-500.0,0.00031899,2]
[404372754,1770084510238,-500.0,0.00031899,2]
[404372755,1770084510263,-244.30414608,0.00031899,2]
[404372756,1770084510360,-500.0,0.00031899,2]
[404372757,1770084510386,-500.0,0.00031899,2]
[404372758,1770084510411,-500.0,0.00031899,2]
[404372759,1770084510437,-500.0,0.00031899,2]
[404372760,1770084510463,-500.0,0.00031899,2]
[404372761,1770084510489,-500.0,0.00031899,2]
[404372762,1770084510514,-500.0,0.00031899,2]
[404372763,1770084510539,-264.62868559,0.00031899,2]
[404372764,1770084510565,-500.0,0.00031899,2]
[404372765,1770084510590,-500.0,0.00031899,2]
[404372766,1770084510615,-500.0,0.00031899,2]
[404372767,1770084510640,-500.0,0.00031899,2]
[404372768,1770084510667,-500.0,0.00031899,2]
[404372769,1770084510694,-500.0,0.00031899,2]
[404372770,1770084510719,-500.0,0.00031899,2]
[404372771,1770084510744,-500.0,0.00031899,2]
[404372772,1770084510769,-500.0,0.00031899,2]
[404372773,1770084510792,-169.08618077,0.000319,120]
[404372774,1770084510815,-200.0,0.00032,120]
[404372775,1770084510842,-169.08618077,0.000329,120]
[404372776,1770084510865,-219.96390704,0.000332,117]
[404372777,1770084510888,-740.91124423,0.00033899,7]
[404372778,1770084510914,-169.08618077,0.000339,120]
[404372779,1770084510937,-200.0,0.00034,120]
[404372780,1770084510960,-720.0,0.00034064,2]
[404372781,1770084510983,-169.08618077,0.000349,120]
[404372782,1770084511006,-200.0,0.00038,120]
[404372783,1770084511030,-1349.16228968,0.00038163,120]
[404372795,1770084547716,500.19982092,0.00013273,2]
[404372797,1770084556320,619.58988389,0.00013273,2]
[404372798,1770084559834,500.0,0.00013273,2]
[404372799,1770084559870,561.22050956,0.00013821,2]
[404372805,1770084607536,500.0,0.00013699,2]
[404372808,1770084610644,500.0,0.00013273,2]
[404372809,1770084610700,1000.0,0.00013821,2]
[404372810,1770084610754,1500.0,0.00014368,2]
[404372811,1770084610810,2000.0,0.00014916,2]
[404372812,1770084610871,500.0,0.00015464,2]
[404372813,1770084616891,500.0,0.00013273,2]
[404372828,1770084632002,-1305.29771032,0.00038163,120]
[404372829,1770084632012,-500.0,0.00038163,120]
[404372830,1770084632022,-348.739293,0.00038163,120]
[404372831,1770084632032,-500.0,0.00038163,120]
[404372832,1770084632042,-500.0,0.00038163,120]
[404372833,1770084632053,-455.42603448,0.000392,2]
[404372834,1770084632062,-608.20458577,0.00039241,2]
[404372835,1770084632071,-608.20458577,0.00039241,2]
[404372836,1770084632080,-316.2663846,0.00039241,2]
[404372837,1770084632090,-225.87,0.000393,2]
[404372838,1770084632099,-194.62546745,0.0003944,10]
[404372839,1770084632109,-2654.46,0.00039726,120]
[404372840,1770084632118,-508.32304441,0.00039726,120]
[404372841,1770084632127,-500.0,0.00039726,120]
[404372842,1770084632228,-500.0,0.00039726,120]
[404372843,1770084632237,-195.89701598,0.00039728,2]
[404372844,1770084632246,-194.62546745,0.00039838,10]
[404372845,1770084632255,-5000.0,0.00039847,30]
[404372846,1770084632264,-200.0,0.0004,120]
[404372847,1770084632273,-233.36,0.0004,30]
[404372848,1770084632283,-194.62546745,0.00040237,10]
[404372849,1770084632295,-600.0,0.0004052,60]
[404372850,1770084632306,-200.0,0.00042,120]
[404372851,1770084632317,-200.0,0.00044,120]
[404372852,1770084632327,-720.0,0.00044571,60]
[404372853,1770084632336,-376.067401,0.00047779,2]
[404372854,1770084632345,-200.0,0.00048,120]
[404372855,1770084632355,-100.26384812,0.00048337,2]
[404372856,1770084632367,-230.60724903,0.00048337,2]
[404372857,1770084632376,-155.7678819,0.00049029,120]
[404372858,1770084632388,-708.2321181,0.00049029,120]
[404372859,1770084632397,-500.0,0.00049899,7]
[404372860,1770084632407,-582.70046067,0.00049899,31]
[404372861,1770084632417,-500.0,0.00049899,120]
[404372862,1770084632427,-194.23227928,0.00049899,7]
[404372863,1770084632437,-500.0,0.00049899,120]
[404372864,1770084632447,-376.46286856,0.00049899,120]
[404372865,1770084632455,-7310.85473279,0.000499,28]
[404372866,1770084632465,-495.06277922,0.00049998,120]
[404372876,1770084638118,-2159.39722078,0.00049998,120]
[404372877,1770084638127,-500.0,0.00049998,120]
[404372878,1770084638136,-500.0,0.00049998,120]
[404372879,1770084638145,-12119.0,0.0005,30]
[404372880,1770084638154,-200.0,0.0005,120]
[404372881,1770084638171,-160.0,0.0005,120]
[404372882,1770084638181,-283.30976121,0.0005,120]
[404372883,1770084638191,-741.9945483,0.00050843,2]
[404372884,1770084638201,-179.0,0.00051051,120]
[404372885,1770084638211,-402.1360593,0.00051677,2]
[404372886,1770084638220,-1890.07021141,0.00051677,2]
[404372887,1770084638236,-223.40892184,0.00051677,2]
[404372888,1770084638256,-696.69664237,0.00051677,2]
[404372889,1770084638267,-1254.05395627,0.00051677,2]
[404372890,1770084638277,-2027.5625513,0.00051677,2]
[404372891,1770084638286,-1000.0,0.00052,120]
[404372892,1770084638296,-231.0,0.00052,120]
[404372893,1770084638306,-741.99454826,0.00052232,2]
[404372894,1770084638315,-195.89701598,0.0005237,2]
[404372895,1770084638325,-160.0,0.000525,120]
[404372896,1770084638335,-1908.638996,0.00052568,2]
[404372897,1770084638344,-355.57640586,0.00052762,2]
[404372898,1770084638355,-2073.850434,0.00052835,60]
[404372899,1770084638365,-370.54706299,0.00053013,4]
[404372900,1770084638374,-2654.46,0.00053022,120]
[404372901,1770084638384,-2654.46,0.00053022,120]
[404372902,1770084638393,-500.0,0.00053022,120]
[404372903,1770084638405,-500.0,0.00053022,120]
[404372904,1770084638414,-500.0,0.00053022,120]
[404372905,1770084638423,-500.0,0.00053022,120]
[404372906,1770084638433,-187.36572957,0.00053022,120]
[404372907,1770084638443,-220.36718585,0.00053022,120]
[404372908,1770084638453,-202.28417255,0.00053022,120]
[404372909,1770084638462,-23108.7600813,0.00053023,2]
[404372910,1770084638471,-3142.6334585,0.00053023,2]
[404372911,1770084638480,-610.0,0.00053058,30]
[404372912,1770084638490,-484.857844,0.00053086,60]
[404372913,1770084638499,-610.0,0.00053124,7]
[404372914,1770084638511,-929.341068,0.00053236,60]
[404372915,1770084638520,-609.0,0.00053453,2]
[404372916,1770084638530,-741.99454826,0.00053622,2]
[404372917,1770084638540,-2998.092562,0.00053666,60]
[404372918,1770084638550,-631.8112555,0.00053783,2]
[404372919,1770084638559,-609.0,0.0005381,7]
[404372920,1770084638569,-1000.0,0.00053931,120]
[404372921,1770084638578,-354.991679,0.00053934,60]
[404372922,1770084638587,-340.22,0.00053989,10]
[404372923,1770084638596,-283.52,0.00053989,10]
[404372924,1770084638605,-370.54706299,0.0005399,4]
[404372925,1770084638614,-2654.46,0.00053999,120]
[404372926,1770084638623,-592.72905503,0.00053999,120]
[404372927,1770084638633,-500.0,0.00053999,120]
[404372928,1770084638642,-30359.18533308,0.00054,2]
[404372929,1770084638651,-2000.0,0.00054,120]
[404372930,1770084638661,-200.0,0.00054,120]
[404372931,1770084638670,-398.289029,0.00054137,60]
[404372932,1770084638678,-2654.46,0.00054518,120]
[404372933,1770084638687,-208.10228056,0.00054518,120]
[404372934,1770084638697,-524.2402995,0.00054519,120]
[404372935,1770084638706,-149961.71086217,0.00054694,7]
[404372936,1770084638715,-740.91124423,0.00054694,7]
[404372937,1770084638724,-370.54706299,0.00054784,4]
[404372938,1770084638733,-500.0,0.00054792,120]
[404372939,1770084638743,-500.0,0.00054792,120]
[404372940,1770084638751,-500.0,0.00054792,2]
[404372941,1770084638763,-200.0,0.00054793,60]
[404372942,1770084638773,-500.0,0.00054793,120]
[404372943,1770084638782,-500.0,0.00054793,120]
[404372944,1770084638791,-500.0,0.00054793,120]
[404372945,1770084638800,-612.84112376,0.00054793,120]
[404372946,1770084638810,-500.0,0.00054793,2]
[404372947,1770084638819,-500.0,0.00054793,2]
[404372948,1770084638828,-2654.46,0.00054793,120]
[404372949,1770084638838,-2654.46,0.00054793,120]
[404372950,1770084638847,-151.0,0.00054793,120]
[404372951,1770084638856,-151.0,0.00054793,120]
[404372952,1770084638868,-151.0,0.00054793,120]
[404372953,1770084638877,-151.0,0.00054793,120]
[404372954,1770084638887,-10672.81,0.00054794,120]
[404372955,1770084638896,-500.0,0.00054794,120]
[404372956,1770084638906,-793.69,0.00054794,120]
[404372957,1770084638916,-447.17547672,0.00054794,30]